[Event "23rd Alekhine Master 2019"]
[Site "Voronezh"]
[Date "2019.06.16"]
[Round "5.2"]
[White "Afanasiev, Nikita"]
[Black "Utegaliyev, Azamat"]
[Result "0-1"]
[ECO "B01"]
[WhiteElo "2524"]
[BlackElo "2495"]
[Annotator "RC"]
[PlyCount "116"]
[EventDate "2019.06.12"]
[EventType "swiss"]
[EventCountry "RUS"]
[SourceTitle "playchess.com"]
[Source "ChessBase"]
[SourceQuality "1"]
[TimeControl "40/5400+30:1800+30"]

1. e4 {[%emt 0:03:19]} d5 {[%emt 0:00:41]} 2. exd5 {[%emt 0:00:08]} Qxd5 {[%emt 0:00:07]} 3. Nc3 {[%emt 0:00:09]} Qd6 {[%emt 0:00:04]} 4. d4 {[%emt 0:00:17]} Nf6 {[%emt 0:00:05]} 5. Nf3 {[%emt 0:00:27]} Bg4 {[%emt 0:00:07]} 6. h3 {[%emt 0:09:25]} Bh5 {[%emt 0:00:23]} 7. Nb5 {[%emt 0:15:37]} Qd8 {[%emt 0:05:36]} 8. c3 {[%emt 0:00:58]} e6 {[%emt 0:02:28]} 9. a4 {[%emt 0:00:46]} a6 {[%emt 0:02:50]} 10. Na3 {[%emt 0:00:11]} c5 {[%emt 0:00:05]} 11. Nc2 {[%emt 0:10:29]} Nc6 {[%emt 0:01:59]} 12. dxc5 {[%emt 0:08:09]} Qxd1+ {[%emt 0:01:22]} 13. Kxd1 {[%emt 0:00:03]} Bxc5 {[%emt 0:07:36]} 14. Ke1 {[%emt 0:02:55]} Bxf3 {[%emt 0:12:47]} 15. gxf3 {[%emt 0:00:04]} Nd5 {[%emt 0:01:16]} 16. Be3 {[%emt 0:01:22]} Be7 {[%emt 0:02:24]} 17. Bc4 {[%emt 0:04:10]} O-O-O {[%emt 0:05:35]} 18. Rd1 {[%emt 0:00:21]} Nxe3 {[%emt 0:01:08]} 19. Nxe3 {[%emt 0:05:41]} g5 {[%emt 0:01:55]} 20. Ke2 {[%emt 0:08:33]} Ne5 {[%emt 0:00:34]} 21. Bd3 {[%emt 0:01:39]} Ng6 {[%emt 0:06:52]} 22. Bxg6 {[%emt 0:11:28]} hxg6 {[%emt 0:03:16]} 23. Nc4 {[%emt 0:00:15]} f6 {[%emt 0:00:39]} 24. Rxd8+ {[%emt 0:01:23]} Kxd8 {[%emt 0:01:28]} 25. Ne3 {[%emt 0:00:45]} Bd6 {[%emt 0:02:50]} 26. Kf1 {[%emt 0:02:06]} Rh4 {[%emt 0:01:55]} 27. b3 {[%emt 0:00:06]} Be5 {[%emt 0:00:31]} 28. c4 {[%emt 0:00:38]} Ke7 {[%emt 0:05:57]} 29. Nc2 {[%emt 0:03:34]} Rh8 {[%emt 0:01:14]} 30. Nb4 {[%emt 0:00:39]} f5 {[%emt 0:02:39]} 31. Nd3 {[%emt 0:00:17]} Bd4 {[%emt 0:00:39]} 32. Kg2 {[%emt 0:03:19]} Rd8 {[%emt 0:01:52]} 33. Rd1 {[%emt 0:00:08]} a5 {[%emt 0:03:20]} 34. Ne1 {[%emt 0:00:37]} e5 {[%emt 0:04:40]} 35. Kf1 {[%emt 0:01:25]} Kd6 {[%emt 0:01:29]} 36. Nd3 {[%emt 0:00:43]} Rh8 {[%emt 0:00:37]} 37. Kg2 {[%emt 0:00:23]} Kc6 {[%emt 0:01:30]} 38. Re1 {[%emt 0:01:20]} Re8 {[%emt 0:00:06]} 39. Rd1 {[%emt 0:00:26]} Ba7 {[%emt 0:12:30]} 40. Ne1 {[%emt 0:00:00]} Bd4 {[%emt 0:00:00]} 41. Nd3 {[%emt 0:05:05]} Ba7 {[%emt 0:16:12]} 42. Ne1 {[%emt 0:00:12]} Bd4 {[%emt 0:04:39]} 43. Nd3 {[%emt 0:00:05]} Ra8 {[%emt 0:00:45]} 44. Kf1 {[%emt 0:12:03]} Rh8 {[%emt 0:01:00]} 45. Kg2 {[%emt 0:00:09]} Kd6 {[%emt 0:00:36]} 46. Ne1 {[%emt 0:01:44]} Ra8 {[%emt 0:00:39]} 47. Nd3 {[%emt 0:02:02]} Ra6 {[%emt 0:01:27]} 48. h4 {[%emt 0:10:57]} gxh4 {[%emt 0:06:20]} 49. f4 {[%emt 0:00:04]} Ke7 {[%emt 0:01:23]} 50. fxe5 {[%emt 0:01:35]} g5 {[%emt 0:01:34]} 51. Nf4 {[%emt 0:06:07]} Bc5 {[%emt 0:00:05]} 52. Nd5+ {[%emt 0:00:16]} Kf8 {[%emt 0:00:41]} 53. f3 {[%emt 0:01:21]} Re6 {[%emt 0:00:50]} 54. f4 {[%emt 0:00:24]} g4 {[%emt 0:00:35]} 55. Nc7 {[%emt 0:00:13]} Rc6 {[%emt 0:02:35]} 56. Rd7 {[%emt 0:00:40]} Rh6 {[%emt 0:00:31]} 57. Nd5 {[%emt 0:00:43]} h3+ {[%emt 0:00:28]} 58. Kh2 {[%emt 0:00:08]} g3+ {[%emt 0:00:39]} 0-1

[Event "23rd Alekhine Master 2019"]
[Site "Voronezh"]
[Date "2019.06.16"]
[Round "5.3"]
[White "Rios, Cristhian Camilo"]
[Black "Nesterov, Arseniy"]
[Result "0-1"]
[ECO "E32"]
[WhiteElo "2513"]
[BlackElo "2423"]
[Annotator "ChessBase"]
[PlyCount "79"]
[EventDate "2019.06.12"]
[EventType "swiss"]
[EventCountry "RUS"]
[SourceTitle "playchess.com"]
[Source "ChessBase"]
[SourceQuality "1"]
[TimeControl "40/5400+30:1800+30"]

1. d4 {[%emt 0:00:00]} Nf6 {[%emt 0:00:00]} 2. c4 {[%emt 0:00:00]} e6 {[%emt 0:00:00]} 3. Nc3 {[%emt 0:00:00]} Bb4 {[%emt 0:00:00]} 4. Qc2 {[%emt 0:00:06]} O-O {[%emt 0:00:08]} 5. a3 {[%emt 0:00:08]} Bxc3+ {[%emt 0:00:14]} 6. Qxc3 {[%emt 0:00:10]} d5 {[%emt 0:00:06]} 7. Bg5 {[%emt 0:00:10]} c5 {[%emt 0:00:13]} 8. dxc5 {[%emt 0:06:45]} d4 {[%emt 0:00:18]} 9. Qc2 {[%emt 0:07:49]} e5 {[%emt 0:00:59]} 10. e4 {[%emt 0:04:31]} a5 {[%emt 0:08:22]} 11. O-O-O {[%emt 0:18:02]} h6 {[%emt 0:10:28]} 12. Bh4 {[%emt 0:00:09]} Nbd7 {[%emt 0:02:47]} 13. f4 {[%emt 0:02:13]} exf4 {[%emt 0:04:04]} 14. Nf3 {[%emt 0:07:18]} Qc7 {[%emt 0:05:39]} 15. Rxd4 {[%emt 0:03:26]} g5 {[%emt 0:14:50]} 16. e5 {[%emt 0:08:32]} Nxe5 {[%emt 0:06:56]} 17. Rd6 {[%emt 0:00:25]} Neg4 {[%emt 0:03:35]} 18. Bf2 {[%emt 0:03:20]} Nxf2 {[%emt 0:01:29]} 19. Rxf6 {[%emt 0:00:08]} Ng4 {[%emt 0:10:23]} 20. Rb6 {[%emt 0:00:06]} Qxc5 {[%emt 0:00:53]} 21. Rb5 {[%emt 0:00:17]} Qf2 {[%emt 0:07:45]} 22. Bd3 {[%emt 0:03:15]} Qxc2+ {[%emt 0:01:18]} 23. Kxc2 {[%emt 0:00:06]} Rd8 {[%emt 0:04:37]} 24. Re1 {[%emt 0:01:48]} Ne3+ {[%emt 0:00:27]} 25. Kc3 {[%emt 0:00:08]} Nxg2 {[%emt 0:07:44]} 26. Re7 {[%emt 0:00:08]} Kf8 {[%emt 0:01:35]} 27. Rc7 {[%emt 0:01:06]} Rd7 {[%emt 0:01:17]} 28. Rcc5 {[%emt 0:00:10]} Re7 {[%emt 0:01:02]} 29. Nd4 {[%emt 0:03:01]} Ne3 {[%emt 0:00:54]} 30. Rb6 {[%emt 0:00:08]} Be6 {[%emt 0:01:27]} 31. h3 {[%emt 0:02:07]} Rd8 {[%emt 0:01:02]} 32. Nxe6+ {[%emt 0:00:44]} Rxe6 {[%emt 0:01:44]} 33. Rxe6 {[%emt 0:00:30]} fxe6 {[%emt 0:00:30]} 34. Be4 {[%emt 0:00:00]} b6 {[%emt 0:02:04]} 35. Rc6 {[%emt 0:00:00]} Nd1+ {[%emt 0:00:27]} 36. Kc2 {[%emt 0:01:03]} Ke7 {[%emt 0:01:49]} 37. Rc7+ {[%emt 0:01:11]} Kf6 {[%emt 0:00:28]} 38. Rh7 {[%emt 0:00:07]} Ke5 {[%emt 0:00:28]} 39. Bf3 {[%emt 0:00:57]} Ne3+ {[%emt 0:00:04]} 40. Kc3 {[%emt 0:00:00]} 0-1

[Event "23rd Alekhine Master 2019"]
[Site "Voronezh"]
[Date "2019.06.16"]
[Round "5.4"]
[White "Ruiz Castillo, Joshua Daniel"]
[Black "Rozum, Ivan"]
[Result "1/2-1/2"]
[ECO "B12"]
[WhiteElo "2472"]
[BlackElo "2572"]
[Annotator "ChessBase"]
[PlyCount "51"]
[EventDate "2019.06.12"]
[EventType "swiss"]
[EventCountry "RUS"]
[SourceTitle "playchess.com"]
[Source "ChessBase"]
[SourceQuality "1"]
[TimeControl "40/5400+30:1800+30"]

1. e4 {[%emt 0:00:00]} c6 {[%emt 0:05:01]} 2. d4 {[%emt 0:00:00]} d5 {[%emt 0:00:06]} 3. e5 {[%emt 0:00:00]} Bf5 {[%emt 0:00:05]} 4. Nf3 {[%emt 0:00:00]} e6 {[%emt 0:00:09]} 5. Be2 {[%emt 0:00:01]} h6 {[%emt 0:01:02]} 6. O-O {[%emt 0:00:07]} Ne7 {[%emt 0:00:05]} 7. Nbd2 {[%emt 0:00:07]} Nd7 {[%emt 0:00:20]} 8. Nb3 {[%emt 0:00:20]} Qc7 {[%emt 0:01:30]} 9. Bd2 {[%emt 0:00:12]} a5 {[%emt 0:00:20]} 10. a4 {[%emt 0:00:06]} g5 {[%emt 0:00:05]} 11. c3 {[%emt 0:00:13]} Bg7 {[%emt 0:00:22]} 12. Ne1 {[%emt 0:00:25]} c5 {[%emt 0:05:43]} 13. Bb5 {[%emt 0:00:07]} Nc6 {[%emt 0:01:48]} 14. Nc2 {[%emt 0:07:26]} c4 {[%emt 0:02:18]} 15. Nc1 {[%emt 0:01:15]} Na7 {[%emt 0:00:23]} 16. Bxd7+ {[%emt 0:00:12]} Qxd7 {[%emt 0:01:06]} 17. Ne3 {[%emt 0:00:15]} Bg6 {[%emt 0:01:04]} 18. f4 gxf4 {[%emt 0:02:57]} 19. Rxf4 {[%emt 0:08:20]} h5 {[%emt 0:00:21]} 20. Rf2 {[%emt 0:08:46]} Nc8 {[%emt 0:07:35]} 21. Nf1 {[%emt 0:01:11]} Qe7 {[%emt 0:07:48]} 22. Bf4 {[%emt 0:00:48]} Nb6 {[%emt 0:00:55]} 23. Qd2 {[%emt 0:02:54]} Qd7 {[%emt 0:01:42]} 24. Qd1 {[%emt 0:00:32]} Qe7 {[%emt 0:01:26]} 25. Qd2 {[%emt 0:00:21]} Qd7 {[%emt 0:00:19]} 26. Qd1 {[%emt 0:00:42]} 1/2-1/2

[Event "23rd Alekhine Master 2019"]
[Site "Voronezh"]
[Date "2019.06.16"]
[Round "5.5"]
[White "Shaposhnikov, Evgeny"]
[Black "Golubov, Saveliy"]
[Result "1-0"]
[ECO "A40"]
[WhiteElo "2572"]
[BlackElo "2460"]
[Annotator "ChessBase"]
[PlyCount "45"]
[EventDate "2019.06.12"]
[EventType "swiss"]
[EventCountry "RUS"]
[SourceTitle "playchess.com"]
[Source "ChessBase"]
[SourceQuality "1"]
[TimeControl "40/5400+30:1800+30"]

1. d4 {[%emt 0:03:26]} g6 {[%emt 0:00:14]} 2. c4 {[%emt 0:01:04]} Bg7 {[%emt 0:00:16]} 3. Nf3 {[%emt 0:00:18]} Nf6 {[%emt 0:00:19]} 4. Nc3 {[%emt 0:00:48]} O-O {[%emt 0:00:16]} 5. Bg5 {[%emt 0:00:25]} d6 {[%emt 0:10:26]} 6. e3 {[%emt 0:00:15]} Nbd7 {[%emt 0:00:41]} 7. Qc2 {[%emt 0:00:52]} h6 {[%emt 0:03:40]} 8. Bh4 {[%emt 0:00:06]} g5 {[%emt 0:00:08]} 9. Bg3 {[%emt 0:00:09]} Nh5 {[%emt 0:00:21]} 10. Be2 {[%emt 0:00:35]} e6 {[%emt 0:04:01]} 11. Nd2 {[%emt 0:01:23]} Nxg3 {[%emt 0:00:28]} 12. hxg3 {[%emt 0:00:02]} c5 {[%emt 0:08:32]} 13. d5 {[%emt 0:09:43]} exd5 {[%emt 0:01:20]} 14. Nxd5 {[%emt 0:06:16]} Nf6 {[%emt 0:06:57]} 15. Bf3 {[%emt 0:17:48]} Nxd5 16. Bxd5 {[%emt 0:00:18]} Be6 {[%emt 0:09:13]} 17. Qd3 {[%emt 0:05:59]} Rb8 {[%emt 0:07:20]} 18. Rd1 {[%emt 0:06:41]} Qa5 {[%emt 0:06:44]} 19. a3 {[%emt 0:08:50]} b5 {[%emt 0:04:18]} 20. Bxe6 {[%emt 0:03:35]} fxe6 {[%emt 0:00:12]} 21. Qxd6 {[%emt 0:01:19]} bxc4 {[%emt 0:11:27]} 22. Qxe6+ {[%emt 0:00:57]} Kh7 {[%emt 0:00:08]} 23. O-O {[%emt 0:01:02]} 1-0

[Event "23rd Alekhine Master 2019"]
[Site "Voronezh"]
[Date "2019.06.16"]
[Round "5.7"]
[White "Fedorov, Alexei"]
[Black "Ulko, Jaroslav"]
[Result "1/2-1/2"]
[ECO "C25"]
[WhiteElo "2553"]
[BlackElo "2438"]
[Annotator "ChessBase"]
[PlyCount "67"]
[EventDate "2019.06.12"]
[EventType "swiss"]
[EventCountry "RUS"]
[SourceTitle "playchess.com"]
[Source "ChessBase"]
[SourceQuality "1"]
[TimeControl "40/5400+30:1800+30"]

1. e4 {[%emt 0:00:00]} e5 {[%emt 0:01:15]} 2. Nc3 {[%emt 0:00:06]} d6 {[%emt 0:00:29]} 3. Bc4 {[%emt 0:05:01]} Nf6 {[%emt 0:00:31]} 4. d3 {[%emt 0:00:39]} c6 {[%emt 0:01:07]} 5. f4 {[%emt 0:01:36]} exf4 {[%emt 0:09:15]} 6. Bxf4 {[%emt 0:09:44]} d5 {[%emt 0:01:51]} 7. exd5 {[%emt 0:00:48]} cxd5 {[%emt 0:00:30]} 8. Bb3 {[%emt 0:00:30]} d4 {[%emt 0:00:30]} 9. Nb5 {[%emt 0:00:30]} Bg4 {[%emt 0:00:30]} 10. Qd2 {[%emt 0:00:30]} Na6 {[%emt 0:00:30]} 11. h3 {[%emt 0:00:30]} Bb4 {[%emt 0:00:30]} 12. c3 {[%emt 0:00:30]} dxc3 {[%emt 0:00:30]} 13. bxc3 {[%emt 0:00:30]} Bd7 {[%emt 0:00:30]} 14. Nd6+ {[%emt 0:00:30]} Bxd6 {[%emt 0:00:30]} 15. Bxd6 {[%emt 0:00:30]} Qb6 {[%emt 0:00:30]} 16. Qe2+ {[%emt 0:00:30]} Be6 {[%emt 0:00:30]} 17. Bxe6 {[%emt 0:00:30]} Qxd6 {[%emt 0:00:30]} 18. Bc4+ {[%emt 0:00:30]} Kf8 {[%emt 0:00:30]} 19. Qf3 {[%emt 0:00:30]} Nc5 {[%emt 0:00:30]} 20. Ne2 {[%emt 0:00:30]} Qb6 {[%emt 0:00:30]} 21. d4 {[%emt 0:00:30]} Nce4 {[%emt 0:00:30]} 22. Rd1 {[%emt 0:00:30]} g6 {[%emt 0:00:30]} 23. O-O {[%emt 0:00:30]} Kg7 {[%emt 0:00:30]} 24. Ng3 {[%emt 0:00:30]} Nxg3 {[%emt 0:00:30]} 25. Qxg3 {[%emt 0:00:30]} Rhe8 {[%emt 0:00:30]} 26. Rf3 {[%emt 0:00:30]} Rac8 {[%emt 0:00:30]} 27. Bb3 {[%emt 0:00:30]} Rc4 {[%emt 0:00:30]} 28. Bxc4 {[%emt 0:00:30]} Rc8 {[%emt 1:12:49]} 29. Bb3 {[%emt 1:04:14]} Rxc3 {[%emt 0:00:30]} 30. Rxc3 {[%emt 0:00:30]} Qxd4+ {[%emt 0:00:30]} 31. Kh1 {[%emt 0:00:30]} Ne4 {[%emt 0:00:30]} 32. Qh4 {[%emt 0:00:30]} g5 {[%emt 0:00:30]} 33. Qh5 {[%emt 0:00:30]} Qxc3 {[%emt 0:00:30]} 34. Rf1 {[%emt 0:00:30]} 1/2-1/2

[Event "23rd Alekhine Master 2019"]
[Site "Voronezh"]
[Date "2019.06.16"]
[Round "5.11"]
[White "Shariyazdanov, Andrey"]
[Black "Nikitenko, Mihail"]
[Result "1-0"]
[ECO "D11"]
[WhiteElo "2526"]
[BlackElo "2424"]
[Annotator "ChessBase"]
[PlyCount "57"]
[EventDate "2019.06.12"]
[EventType "swiss"]
[EventCountry "RUS"]
[SourceTitle "playchess.com"]
[Source "ChessBase"]
[SourceQuality "1"]
[TimeControl "40/5400+30:1800+30"]

1. d4 {[%emt 0:00:28]} d5 {[%emt 0:00:00]} 2. c4 {[%emt 0:00:14]} c6 {[%emt 0:00:00]} 3. Nf3 {[%emt 0:00:22]} Nf6 {[%emt 0:00:00]} 4. g3 {[%emt 0:00:26]} Bf5 {[%emt 0:00:39]} 5. Nc3 {[%emt 0:00:26]} dxc4 {[%emt 0:01:52]} 6. Ne5 {[%emt 0:03:31]} Nd5 {[%emt 0:08:02]} 7. Bg2 {[%emt 0:02:18]} Nxc3 {[%emt 0:02:49]} 8. bxc3 {[%emt 0:00:07]} Qa5 {[%emt 0:00:50]} 9. O-O {[%emt 0:07:44]} Nd7 {[%emt 0:00:36]} 10. Nxd7 {[%emt 0:14:27]} Bxd7 {[%emt 0:00:41]} 11. Rb1 {[%emt 0:00:32]} O-O-O {[%emt 0:04:01]} 12. d5 {[%emt 0:04:40]} Be8 {[%emt 0:06:44]} 13. dxc6 {[%emt 0:11:27]} Bxc6 {[%emt 0:03:37]} 14. Bxc6 {[%emt 0:00:41]} Rxd1 {[%emt 0:13:13]} 15. Bxb7+ {[%emt 0:00:35]} Kd7 {[%emt 0:00:30]} 16. Rxd1+ {[%emt 0:00:10]} Ke6 {[%emt 0:00:02]} 17. Be3 {[%emt 0:09:04]} Kf6 {[%emt 0:01:34]} 18. Bc6 {[%emt 0:02:24]} Qxa2 {[%emt 0:05:59]} 19. Rb5 {[%emt 0:02:34]} e5 {[%emt 0:07:36]} 20. Rb7 {[%emt 0:00:59]} Qxe2 {[%emt 0:12:32]} 21. Rdd7 {[%emt 0:00:43]} Qe1+ {[%emt 0:00:18]} 22. Kg2 {[%emt 0:00:06]} Qxc3 {[%emt 0:00:31]} 23. Be4 {[%emt 0:03:17]} g6 {[%emt 0:05:58]} 24. Bd5 {[%emt 0:05:50]} e4 {[%emt 0:00:05]} 25. Bxe4 {[%emt 0:05:19]} Ke5 {[%emt 0:01:12]} 26. Bd5 {[%emt 0:00:54]} f6 {[%emt 0:05:23]} 27. f4+ {[%emt 0:02:36]} Kf5 {[%emt 0:00:03]} 28. Kf3 {[%emt 0:00:27]} h5 {[%emt 0:01:13]} 29. h3 {[%emt 0:00:11]} 1-0

[Event "23rd Alekhine Master 2019"]
[Site "Voronezh"]
[Date "2019.06.16"]
[Round "5.12"]
[White "Rodin, Dmitrij"]
[Black "Visakh N R"]
[Result "*"]
[ECO "B90"]
[WhiteElo "2403"]
[BlackElo "2518"]
[Annotator "ChessBase"]
[PlyCount "51"]
[EventDate "2019.06.12"]
[EventType "swiss"]
[EventCountry "RUS"]
[SourceTitle "playchess.com"]
[Source "ChessBase"]
[SourceQuality "1"]
[TimeControl "40/5400+30:1800+30"]

1. e4 {[%emt 0:00:00]} c5 {[%emt 0:01:07]} 2. Nf3 {[%emt 0:00:00]} d6 {[%emt 0:01:10]} 3. d4 {[%emt 0:00:00]} cxd4 {[%emt 0:00:11]} 4. Nxd4 {[%emt 0:00:00]} Nf6 {[%emt 0:00:11]} 5. Nc3 {[%emt 0:00:00]} a6 {[%emt 0:01:39]} 6. Be3 {[%emt 0:02:09]} e5 {[%emt 0:00:17]} 7. Nf3 {[%emt 0:00:06]} Be7 {[%emt 0:00:51]} 8. Bc4 {[%emt 0:01:58]} O-O {[%emt 0:00:14]} 9. O-O {[%emt 0:00:05]} Nc6 {[%emt 0:00:06]} 10. Re1 {[%emt 0:05:16]} Be6 {[%emt 0:00:27]} 11. Nd5 {[%emt 0:04:02]} Bxd5 {[%emt 0:06:30]} 12. exd5 {[%emt 0:14:25]} b5 {[%emt 0:02:50]} 13. Bf1 {[%emt 0:11:19]} Nb4 {[%emt 0:08:59]} 14. c4 {[%emt 0:00:31]} bxc4 {[%emt 0:00:05]} 15. Bxc4 {[%emt 0:00:11]} Qc7 {[%emt 0:00:05]} 16. b3 {[%emt 0:02:21]} Qb7 {[%emt 0:02:14]} 17. Bg5 {[%emt 0:04:33]} Nbxd5 {[%emt 0:08:51]} 18. Bxd5 {[%emt 0:00:30]} Qxd5 {[%emt 0:00:30]} 19. Bxf6 {[%emt 0:00:30]} Qxd1 {[%emt 0:00:30]} 20. Raxd1 {[%emt 0:00:30]} gxf6 {[%emt 0:00:30]} 21. Nh4 {[%emt 0:00:30]} Rfd8 {[%emt 0:00:30]} 22. Nf5 {[%emt 0:00:30]} Bf8 {[%emt 0:00:30]} 23. Rd5 {[%emt 0:00:30]} Rac8 {[%emt 0:00:30]} 24. Red1 {[%emt 0:00:30]} h5 {[%emt 0:00:30]} 25. Rxe5 {[%emt 0:00:50]} fxe5 {[%emt 0:00:21]} 26. Rd5 {[%emt 0:00:00]} *

[Event "23rd Alekhine Master 2019"]
[Site "Voronezh"]
[Date "2019.06.18"]
[Round "6.1"]
[White "Utegaliyev, Azamat"]
[Black "Pavlov, Sergey"]
[Result "1/2-1/2"]
[ECO "A04"]
[WhiteElo "2495"]
[BlackElo "2473"]
[Annotator "ChessBase"]
[PlyCount "80"]
[EventDate "2019.06.12"]
[EventType "swiss"]
[EventCountry "RUS"]
[SourceTitle "playchess.com"]
[Source "ChessBase"]
[SourceQuality "1"]
[TimeControl "40/5400+30:1800+30"]

1. Nf3 {[%emt 0:00:00]} c5 {[%emt 0:01:27]} 2. c4 {[%emt 0:04:46]} Nf6 {[%emt 0:00:31]} 3. b3 {[%emt 0:00:26]} g6 {[%emt 0:02:53]} 4. Bb2 {[%emt 0:00:17]} Bg7 {[%emt 0:00:09]} 5. g3 {[%emt 0:00:20]} b6 {[%emt 0:03:13]} 6. Bg2 {[%emt 0:00:24]} Bb7 {[%emt 0:00:21]} 7. O-O {[%emt 0:01:22]} O-O {[%emt 0:00:22]} 8. d4 {[%emt 0:00:58]} cxd4 {[%emt 0:00:20]} 9. Qxd4 {[%emt 0:00:28]} d6 {[%emt 0:04:05]} 10. Nc3 {[%emt 0:01:05]} Nbd7 {[%emt 0:02:02]} 11. Rac1 {[%emt 0:05:16]} Ne4 {[%emt 0:03:22]} 12. Qe3 {[%emt 0:02:50]} Nxc3 {[%emt 0:00:29]} 13. Bxc3 {[%emt 0:00:04]} Nf6 {[%emt 0:00:20]} 14. Rfd1 {[%emt 0:04:34]} Rc8 {[%emt 0:04:58]} 15. h3 {[%emt 0:01:15]} Rc7 {[%emt 0:07:28]} 16. a4 {[%emt 0:01:17]} Qc8 {[%emt 0:14:15]} 17. a5 {[%emt 0:06:01]} Nd5 {[%emt 0:06:18]} 18. cxd5 {[%emt 0:00:15]} Rxc3 {[%emt 0:01:54]} 19. Rxc3 {[%emt 0:00:50]} Qxc3 {[%emt 0:00:29]} 20. Qxe7 {[%emt 0:01:04]} Qxb3 {[%emt 0:01:43]} 21. Rd3 {[%emt 0:02:45]} Qb1+ {[%emt 0:01:38]} 22. Kh2 {[%emt 0:00:05]} bxa5 {[%emt 0:08:32]} 23. Nd2 {[%emt 0:29:26]} Qb4 {[%emt 0:01:31]} 24. Ne4 {[%emt 0:00:25]} a4 {[%emt 0:12:48]} 25. Nf6+ {[%emt 0:04:46]} Bxf6 {[%emt 0:08:42]} 26. Qxf6 {[%emt 0:00:06]} Ba6 {[%emt 0:00:56]} 27. Re3 {[%emt 0:04:19]} a3 {[%emt 0:05:58]} 28. Qa1 {[%emt 0:02:35]} Qb2 {[%emt 0:02:16]} 29. Qxa3 {[%emt 0:02:45]} Qxa3 {[%emt 0:00:12]} 30. Rxa3 {[%emt 0:00:04]} Bxe2 {[%emt 0:00:11]} 31. Rxa7 {[%emt 0:00:11]} Rb8 {[%emt 0:01:05]} 32. Re7 {[%emt 0:01:13]} Bd3 {[%emt 0:02:07]} 33. g4 {[%emt 0:01:30]} h6 {[%emt 0:00:54]} 34. h4 {[%emt 0:01:23]} Rb2 {[%emt 0:01:16]} 35. Kg3 {[%emt 0:00:31]} Rb3 {[%emt 0:00:10]} 36. Kf4 {[%emt 0:07:54]} Rb2 {[%emt 0:00:55]} 37. Kg3 {[%emt 0:01:33]} Rb3 {[%emt 0:00:10]} 38. Kf4 {[%emt 0:00:14]} Rb2 {[%emt 0:00:05]} 39. Kg3 {[%emt 0:00:05]} Rb3 40. Kf4 Rb2 {Ke4} 1/2-1/2

[Event "23rd Alekhine Master 2019"]
[Site "Voronezh"]
[Date "2019.06.18"]
[Round "6.2"]
[White "Nesterov, Arseniy"]
[Black "Shaposhnikov, Evgeny"]
[Result "1-0"]
[ECO "E12"]
[WhiteElo "2423"]
[BlackElo "2572"]
[Annotator "ChessBase"]
[PlyCount "101"]
[EventDate "2019.06.12"]
[EventType "swiss"]
[EventCountry "RUS"]
[SourceTitle "playchess.com"]
[Source "ChessBase"]
[SourceQuality "1"]
[TimeControl "40/5400+30:1800+30"]

1. d4 {[%emt 0:00:00]} Nf6 {[%emt 0:00:00]} 2. c4 {[%emt 0:00:00]} e6 {[%emt 0:00:07]} 3. Nf3 {[%emt 0:00:00]} b6 {[%emt 0:00:28]} 4. a3 {[%emt 0:00:02]} Bb7 {[%emt 0:01:41]} 5. Nc3 {[%emt 0:00:09]} g6 {[%emt 0:00:41]} 6. Qc2 {[%emt 0:00:13]} Bg7 {[%emt 0:01:36]} 7. e4 {[%emt 0:00:18]} d6 {[%emt 0:00:33]} 8. Bd3 {[%emt 0:00:42]} Nbd7 {[%emt 0:02:02]} 9. O-O {[%emt 0:00:44]} O-O {[%emt 0:00:52]} 10. Bg5 {[%emt 0:03:29]} h6 {[%emt 0:00:44]} 11. Bd2 {[%emt 0:00:30]} c5 {[%emt 0:01:00]} 12. d5 {[%emt 0:00:07]} exd5 {[%emt 0:07:05]} 13. exd5 {[%emt 0:00:12]} Ng4 {[%emt 0:00:59]} 14. h3 {[%emt 0:10:47]} Nge5 {[%emt 0:01:02]} 15. Nxe5 {[%emt 0:00:12]} Nxe5 {[%emt 0:00:09]} 16. Be2 {[%emt 0:00:08]} Bc8 {[%emt 0:05:22]} 17. f4 {[%emt 0:08:58]} Bf5 {[%emt 0:09:11]} 18. Qb3 {[%emt 0:01:04]} Nd7 {[%emt 0:00:23]} 19. g4 {[%emt 0:11:58]} Re8 {[%emt 0:04:49]} 20. gxf5 {[%emt 0:01:57]} Qh4 {[%emt 0:03:19]} 21. Rf3 {[%emt 0:11:34]} Bxc3 {[%emt 0:01:09]} 22. Qxc3 {[%emt 0:00:07]} Rxe2 {[%emt 0:00:12]} 23. Qd3 {[%emt 0:01:01]} Rae8 {[%emt 0:04:04]} 24. fxg6 {[%emt 0:01:41]} R8e4 {[%emt 0:01:29]} 25. gxf7+ {[%emt 0:03:07]} Kxf7 {[%emt 0:03:28]} 26. Kf1 {[%emt 0:19:10]} Qe7 {[%emt 0:20:30]} 27. Rf2 {[%emt 0:03:36]} Rxf2+ {[%emt 0:00:26]} 28. Kxf2 {[%emt 0:00:01]} Qh4+ {[%emt 0:00:41]} 29. Kg2 {[%emt 0:01:12]} Nf6 {[%emt 0:00:08]} 30. Rf1 {[%emt 0:03:19]} Re8 {[%emt 0:07:26]} 31. Rf3 {[%emt 0:04:18]} Rg8+ {[%emt 0:06:51]} 32. Kf1 {[%emt 0:02:23]} Qh5 {[%emt 0:06:12]} 33. Bc3 {[%emt 0:01:30]} Rg6 {[%emt 0:01:33]} 34. Re3 {[%emt 0:05:25]} Nd7 {[%emt 0:04:37]} 35. Qe4 {[%emt 0:01:24]} Nf8 {[%emt 0:00:07]} 36. f5 {[%emt 0:02:43]} Rg5 {[%emt 0:00:14]} 37. Qe8+ {[%emt 0:00:06]} Kg8 {[%emt 0:00:09]} 38. Qxh5 {[%emt 0:00:08]} Rxh5 {[%emt 0:00:01]} 39. Rg3+ {[%emt 0:00:14]} Kf7 {[%emt 0:00:23]} 40. Rg7+ {[%emt 0:00:00]} Ke8 {[%emt 0:00:00]} 41. f6 {[%emt 0:02:31]} Rf5+ {[%emt 0:00:52]} 42. Kg2 {[%emt 0:01:41]} Nd7 {[%emt 0:00:27]} 43. Re7+ {[%emt 0:00:05]} Kd8 {[%emt 0:00:04]} 44. Re6 {[%emt 0:00:08]} Kc7 {[%emt 0:00:10]} 45. Kg3 {[%emt 0:00:06]} h5 {[%emt 0:00:57]} 46. Kh4 {[%emt 0:00:28]} a6 {[%emt 0:00:10]} 47. Re7 {[%emt 0:00:38]} Kd8 {[%emt 0:00:50]} 48. Rh7 {[%emt 0:00:46]} Ke8 {[%emt 0:02:10]} 49. Rxh5 {[%emt 0:00:24]} Rf4+ {[%emt 0:00:09]} 50. Kg5 {[%emt 0:00:06]} Rxc4 {[%emt 0:00:08]} 51. Kg6 {[%emt 0:00:36]} 1-0